[Event "49th Rilton Cup 2019-20"]
[Site "Stockholm"]
[Date "2019.12.28"]
[Round "2.10"]
[White "Koykka, Pekka"]
[Black "Valsecchi, Alessio"]
[Result "1-0"]
[ECO "C01"]
[WhiteElo "2372"]
[BlackElo "2503"]
[Annotator "ChessBase"]
[PlyCount "97"]
[EventDate "2019.12.27"]
[EventType "swiss"]
[EventCountry "SWE"]
[SourceTitle "playchess.com"]
[Source "ChessBase"]
[SourceQuality "1"]
[TimeControl "40/5400+30:1800+30"]

1. e4 {[%emt 0:00:00]} e6 {[%emt 0:00:00]} 2. d4 {[%emt 0:00:01]} d5 {[%emt 0:00:04]} 3. exd5 {[%emt 0:05:36]} exd5 {[%emt 0:00:08]} 4. Bd3 {[%emt 0:00:05]} Bd6 {[%emt 0:03:17]} 5. Nf3 {[%emt 0:01:59]} Nc6 {[%emt 0:02:16]} 6. c3 {[%emt 0:00:33]} Bg4 {[%emt 0:02:52]} 7. O-O {[%emt 0:02:38]} Nge7 {[%emt 0:02:40]} 8. Re1 {[%emt 0:00:55]} Qd7 {[%emt 0:00:51]} 9. Nbd2 {[%emt 0:00:19]} O-O-O {[%emt 0:03:46]} 10. b4 {[%emt 0:04:39]} Ng6 {[%emt 0:15:59]} 11. b5 {[%emt 0:10:06]} Nce7 {[%emt 0:00:15]} 12. Qa4 {[%emt 0:02:44]} Kb8 {[%emt 0:04:28]} 13. Ne5 {[%emt 0:10:13]} Bxe5 {[%emt 0:02:05]} 14. dxe5 {[%emt 0:00:07]} f6 {[%emt 0:00:23]} 15. exf6 {[%emt 0:04:29]} gxf6 {[%emt 0:00:32]} 16. Nb3 {[%emt 0:03:54]} b6 {[%emt 0:03:37]} 17. Nd4 {[%emt 0:17:07]} Rde8 {[%emt 0:05:40]} 18. Bxg6 {[%emt 0:16:29]} hxg6 {[%emt 0:10:19]} 19. f3 {[%emt 0:05:38]} Nc8 {[%emt 0:01:09]} 20. Bf4 {[%emt 0:05:49]} Bf5 {[%emt 0:01:59]} 21. Nc6+ {[%emt 0:00:59]} Ka8 {[%emt 0:00:16]} 22. Qd4 {[%emt 0:00:35]} Rh4 {[%emt 0:13:23]} 23. Rxe8 {[%emt 0:03:33]} Qxe8 {[%emt 0:00:03]} 24. Qd2 {[%emt 0:01:55]} Qf7 {[%emt 0:04:26]} 25. a4 {[%emt 0:00:17]} a5 {[%emt 0:01:33]} 26. bxa6 {[%emt 0:00:33]} Bd7 {[%emt 0:06:28]} 27. Nb4 {[%emt 0:00:43]} c6 {[%emt 0:01:12]} 28. a5 {[%emt 0:00:32]} b5 {[%emt 0:00:34]} 29. Nd3 {[%emt 0:00:59]} Bf5 {[%emt 0:01:46]} 30. Bg3 {[%emt 0:00:41]} Rh8 {[%emt 0:03:30]} 31. Nb4 {[%emt 0:00:15]} Qd7 {[%emt 0:01:52]} 32. Qd4 {[%emt 0:00:15]} Re8 {[%emt 0:01:32]} 33. Bf2 {[%emt 0:01:16]} Qd6 {[%emt 0:00:25]} 34. Re1 {[%emt 0:00:24]} Rxe1+ {[%emt 0:05:37]} 35. Bxe1 {[%emt 0:00:01]} g5 {[%emt 0:00:19]} 36. Bg3 {[%emt 0:00:25]} Qe7 {[%emt 0:01:32]} 37. Nxc6 {[%emt 0:00:42]} Qd7 {[%emt 0:01:08]} 38. Nb4 {[%emt 0:00:36]} Qa7 {[%emt 0:00:30]} 39. Nxd5 {[%emt 0:00:23]} Qxd4+ {[%emt 0:00:28]} 40. cxd4 {[%emt 0:00:06]} Ka7 {[%emt 0:00:35]} 41. Nb4 {[%emt 0:02:26]} Bd7 {[%emt 0:03:43]} 42. Bc7 {[%emt 0:02:21]} f5 {[%emt 0:03:17]} 43. d5 {[%emt 0:00:46]} g4 {[%emt 0:02:20]} 44. Kf2 {[%emt 0:04:47]} Ne7 {[%emt 0:00:34]} 45. h4 {[%emt 0:03:14]} gxh3 {[%emt 0:00:52]} 46. gxh3 {[%emt 0:00:02]} Ng6 {[%emt 0:00:25]} 47. Kg3 {[%emt 0:00:35]} Bc8 {[%emt 0:00:41]} 48. Bb6+ {[%emt 0:01:51]} Ka8 {[%emt 0:00:08]} 49. f4 {[%emt 0:01:04]} 1-0

[Event "49th Rilton Cup 2019-20"]
[Site "Stockholm"]
[Date "2019.12.28"]
[Round "2.11"]
[White "Quesada Perez, Luis Ernesto"]
[Black "Sorensen, Hampus"]
[Result "1-0"]
[ECO "D45"]
[WhiteElo "2499"]
[BlackElo "2364"]
[Annotator "ChessBase"]
[PlyCount "86"]
[EventDate "2019.12.27"]
[EventType "swiss"]
[EventCountry "SWE"]
[SourceTitle "playchess.com"]
[Source "ChessBase"]
[SourceQuality "1"]
[TimeControl "40/5400+30:1800+30"]

1. d4 {[%emt 0:10:01]} d5 {[%emt 0:00:03]} 2. c4 {[%emt 0:00:03]} c6 {[%emt 0:00:13]} 3. Nc3 {[%emt 0:00:14]} Nf6 {[%emt 0:00:47]} 4. e3 {[%emt 0:00:41]} e6 {[%emt 0:01:35]} 5. Nf3 {[%emt 0:00:16]} a6 {[%emt 0:01:03]} 6. Qc2 {[%emt 0:05:01]} c5 {[%emt 0:01:32]} 7. cxd5 {[%emt 0:00:16]} exd5 {[%emt 0:00:54]} 8. Be2 {[%emt 0:00:45]} cxd4 {[%emt 0:01:18]} 9. Nxd4 {[%emt 0:00:31]} Bd6 {[%emt 0:00:51]} 10. O-O {[%emt 0:00:11]} O-O {[%emt 0:01:18]} 11. b3 {[%emt 0:10:54]} Bd7 {[%emt 0:04:43]} 12. Bf3 {[%emt 0:01:49]} Nc6 {[%emt 0:06:40]} 13. Nxd5 {[%emt 0:02:08]} Nxd5 {[%emt 0:01:52]} 14. Bxd5 {[%emt 0:00:10]} Nb4 {[%emt 0:07:40]} 15. Qe4 {[%emt 0:00:23]} Re8 {[%emt 0:03:50]} 16. Qf3 {[%emt 0:00:50]} Nxd5 {[%emt 0:00:56]} 17. Qxd5 {[%emt 0:00:02]} Bb5 {[%emt 0:00:40]} 18. Qxb7 {[%emt 0:00:28]} Bxf1 {[%emt 0:03:53]} 19. Kxf1 {[%emt 0:00:26]} Qc8 {[%emt 0:07:20]} 20. Qxc8 {[%emt 0:02:18]} Raxc8 {[%emt 0:02:24]} 21. Bb2 {[%emt 0:00:57]} Be5 {[%emt 0:00:59]} 22. Ke2 {[%emt 0:00:37]} Bxd4 {[%emt 0:01:29]} 23. Bxd4 {[%emt 0:00:02]} Rc2+ {[%emt 0:00:46]} 24. Kf3 {[%emt 0:00:42]} Rec8 {[%emt 0:03:01]} 25. b4 {[%emt 0:01:08]} Rc1 {[%emt 0:05:42]} 26. Rxc1 {[%emt 0:00:03]} Rxc1 {[%emt 0:00:09]} 27. a4 {[%emt 0:03:05]} Rb1 {[%emt 0:01:32]} 28. Bc5 {[%emt 0:02:12]} Ra1 {[%emt 0:10:36]} 29. a5 {[%emt 0:01:10]} f6 {[%emt 0:02:00]} 30. Ke4 {[%emt 0:01:24]} Rd1 {[%emt 0:00:29]} 31. b5 {[%emt 0:21:57]} axb5 {[%emt 0:05:11]} 32. a6 {[%emt 0:00:27]} Ra1 {[%emt 0:04:31]} 33. a7 {[%emt 0:00:03]} Kf7 {[%emt 0:06:12]} 34. Kd5 {[%emt 0:01:22]} Ra6 {[%emt 0:00:30]} 35. e4 {[%emt 0:07:28]} Ke8 {[%emt 0:05:13]} 36. f4 {[%emt 0:00:17]} b4 {[%emt 0:04:08]} 37. Kc4 {[%emt 0:00:10]} b3 {[%emt 0:00:20]} 38. Kxb3 {[%emt 0:00:05]} Kd7 {[%emt 0:00:12]} 39. e5 {[%emt 0:03:27]} fxe5 {[%emt 0:00:51]} 40. fxe5 {[%emt 0:00:03]} Ke6 {[%emt 0:04:11]} 41. Kc4 {[%emt 0:30:19]} Kxe5 {[%emt 0:03:57]} 42. Kb5 {[%emt 0:00:00]} Ra2 {[%emt 0:00:10]} 43. Bb6 {[%emt 0:00:00]} Kd5 1-0

[Event "49th Rilton Cup 2019-20"]
[Site "Stockholm"]
[Date "2019.12.28"]
[Round "2.12"]
[White "Mikalsen, Erlend"]
[Black "Miezis, Normunds"]
[Result "1/2-1/2"]
[ECO "B43"]
[WhiteElo "2361"]
[BlackElo "2486"]
[Annotator "ChessBase"]
[PlyCount "97"]
[EventDate "2019.12.27"]
[EventType "swiss"]
[EventCountry "SWE"]
[SourceTitle "playchess.com"]
[Source "ChessBase"]
[SourceQuality "1"]
[TimeControl "40/5400+30:1800+30"]

1. e4 {[%emt 0:08:23]} c5 {[%emt 0:00:00]} 2. Nf3 {[%emt 0:00:06]} e6 {[%emt 0:00:00]} 3. d4 {[%emt 0:00:02]} cxd4 {[%emt 0:00:08]} 4. Nxd4 {[%emt 0:00:03]} a6 {[%emt 0:00:13]} 5. Nc3 {[%emt 0:00:03]} b5 {[%emt 0:01:57]} 6. Bd3 {[%emt 0:04:22]} Bb7 {[%emt 0:00:49]} 7. O-O {[%emt 0:01:37]} Nc6 {[%emt 0:01:15]} 8. Nxc6 {[%emt 0:01:15]} Bxc6 {[%emt 0:00:25]} 9. Qe2 {[%emt 0:06:56]} Bc5 {[%emt 0:06:59]} 10. Bf4 {[%emt 0:05:37]} d6 {[%emt 0:13:23]} 11. a4 {[%emt 0:02:21]} b4 {[%emt 0:03:48]} 12. Nd5 {[%emt 0:00:47]} Bb7 {[%emt 0:25:12]} 13. Ne3 {[%emt 0:03:19]} Ne7 {[%emt 0:08:03]} 14. Rad1 {[%emt 0:06:31]} Ng6 {[%emt 0:02:05]} 15. Bg3 {[%emt 0:00:33]} O-O {[%emt 0:00:28]} 16. e5 {[%emt 0:04:46]} Qb6 {[%emt 0:02:36]} 17. exd6 {[%emt 0:02:32]} Rad8 {[%emt 0:00:39]} 18. Kh1 {[%emt 0:16:25]} Bxd6 {[%emt 0:22:21]} 19. Nc4 {[%emt 0:08:31]} Qc6 {[%emt 0:01:05]} 20. Be4 {[%emt 0:03:39]} Qxe4 {[%emt 0:00:18]} 21. Qxe4 {[%emt 0:00:03]} Bxe4 {[%emt 0:00:10]} 22. Bxd6 {[%emt 0:00:23]} Rfe8 {[%emt 0:01:22]} 23. Bxb4 {[%emt 0:00:46]} Bxc2 {[%emt 0:00:42]} 24. Rc1 {[%emt 0:04:07]} Bd3 {[%emt 0:03:11]} 25. Rfe1 {[%emt 0:00:49]} Rd4 {[%emt 0:01:15]} 26. Nd6 {[%emt 0:04:28]} Rb8 {[%emt 0:00:31]} 27. Ba3 {[%emt 0:01:19]} Rxa4 {[%emt 0:00:45]} 28. Rc3 {[%emt 0:02:37]} Bb5 {[%emt 0:00:22]} 29. Rc7 {[%emt 0:02:36]} Rf4 {[%emt 0:00:36]} 30. f3 {[%emt 0:03:01]} h6 {[%emt 0:00:10]} 31. Re3 {[%emt 0:00:57]} e5 {[%emt 0:01:17]} 32. Ne4 {[%emt 0:03:20]} Rd8 {[%emt 0:00:45]} 33. g3 {[%emt 0:01:26]} Rd1+ {[%emt 0:00:17]} 34. Kg2 {[%emt 0:00:02]} Rf5 {[%emt 0:00:32]} 35. Bb4 {[%emt 0:01:51]} Bf1+ {[%emt 0:01:45]} 36. Kf2 {[%emt 0:00:13]} Bb5 {[%emt 0:00:25]} 37. Bc3 {[%emt 0:00:54]} Rf1+ {[%emt 0:00:51]} 38. Kg2 {[%emt 0:00:07]} Rd1 {[%emt 0:00:29]} 39. Rc5 {[%emt 0:02:02]} Kh7 {[%emt 0:00:41]} 40. Rc7 {[%emt 0:00:30]} Kg8 {[%emt 0:01:16]} 41. Rc8+ {[%emt 0:06:10]} Kh7 {[%emt 0:00:10]} 42. Rc7 {[%emt 0:00:22]} Bf1+ {[%emt 0:07:53]} 43. Kf2 {[%emt 0:00:04]} Bh3 {[%emt 0:02:55]} 44. Re1 {[%emt 0:02:21]} Rd8 {[%emt 0:05:20]} 45. Re2 {[%emt 0:05:49]} Rd1 {[%emt 0:05:30]} 46. Re1 {[%emt 0:00:03]} Rd5 {[%emt 0:01:34]} 47. Re2 {[%emt 0:02:43]} Rd3 {[%emt 0:02:51]} 48. Re3 {[%emt 0:00:03]} Rd1 {[%emt 0:03:31]} 49. Re1 {[%emt 0:00:04]} 1/2-1/2

[Event "49th Rilton Cup 2019-20"]
[Site "Stockholm"]
[Date "2019.12.28"]
[Round "2.13"]
[White "Tsyhanchuk, Stanislav"]
[Black "Pavlovic, Milos"]
[Result "1/2-1/2"]
[ECO "C10"]
[WhiteElo "2357"]
[BlackElo "2480"]
[Annotator "ChessBase"]
[PlyCount "79"]
[EventDate "2019.12.27"]
[EventType "swiss"]
[EventCountry "SWE"]
[SourceTitle "playchess.com"]
[Source "ChessBase"]
[SourceQuality "1"]
[TimeControl "40/5400+30:1800+30"]

1. e4 {[%emt 0:04:40]} e6 {[%emt 0:06:19]} 2. d4 {[%emt 0:00:20]} d5 {[%emt 0:00:06]} 3. Nc3 {[%emt 0:00:16]} dxe4 {[%emt 0:00:45]} 4. Nxe4 {[%emt 0:00:14]} Be7 {[%emt 0:00:05]} 5. Nf3 {[%emt 0:03:12]} Nf6 {[%emt 0:00:06]} 6. Bd3 {[%emt 0:08:08]} Nbd7 {[%emt 0:00:11]} 7. O-O {[%emt 0:02:10]} O-O {[%emt 0:00:07]} 8. Qe2 {[%emt 0:03:11]} b6 {[%emt 0:00:21]} 9. Re1 {[%emt 0:07:25]} Bb7 {[%emt 0:12:22]} 10. Neg5 {[%emt 0:09:33]} Bd6 {[%emt 0:28:25]} 11. Ne4 {[%emt 0:15:53]} Nxe4 {[%emt 0:21:36]} 12. Bxe4 {[%emt 0:00:06]} Bxe4 {[%emt 0:00:08]} 13. Qxe4 {[%emt 0:00:04]} c5 {[%emt 0:00:03]} 14. Bg5 {[%emt 0:07:51]} Qc7 {[%emt 0:00:07]} 15. Rad1 {[%emt 0:01:17]} h6 {[%emt 0:06:50]} 16. Bh4 {[%emt 0:23:02]} c4 {[%emt 0:01:33]} 17. Ne5 {[%emt 0:04:55]} Rae8 {[%emt 0:05:29]} 18. f4 {[%emt 0:00:15]} b5 {[%emt 0:02:59]} 19. c3 {[%emt 0:00:59]} Nb6 {[%emt 0:04:55]} 20. f5 {[%emt 0:02:21]} exf5 {[%emt 0:01:28]} 21. Qxf5 {[%emt 0:00:06]} Re6 {[%emt 0:00:53]} 22. Nf3 {[%emt 0:01:11]} Qd7 {[%emt 0:00:17]} 23. Rxe6 {[%emt 0:02:38]} fxe6 {[%emt 0:00:02]} 24. Qg4 {[%emt 0:01:01]} Nd5 {[%emt 0:01:30]} 25. Re1 {[%emt 0:00:05]} Rf5 {[%emt 0:00:01]} 26. Bg3 {[%emt 0:00:46]} Bf4 {[%emt 0:05:28]} 27. Ne5 {[%emt 0:01:15]} Bxe5 {[%emt 0:00:06]} 28. Bxe5 {[%emt 0:00:11]} Qf7 {[%emt 0:00:58]} 29. Qe2 {[%emt 0:00:30]} Qd7 {[%emt 0:00:45]} 30. a4 {[%emt 0:00:48]} a6 {[%emt 0:00:12]} 31. axb5 {[%emt 0:00:23]} axb5 {[%emt 0:00:01]} 32. Bg3 {[%emt 0:00:35]} Rf6 {[%emt 0:00:04]} 33. Ra1 {[%emt 0:00:19]} Qc6 {[%emt 0:00:53]} 34. Qe4 {[%emt 0:00:44]} Qd7 {[%emt 0:00:49]} 35. Be5 {[%emt 0:00:31]} Rf8 {[%emt 0:00:25]} 36. Qg6 {[%emt 0:00:28]} Nf4 {[%emt 0:00:34]} 37. Bxf4 {[%emt 0:00:28]} Rxf4 {[%emt 0:00:01]} 38. Ra8+ {[%emt 0:00:20]} Rf8 {[%emt 0:00:01]} 39. Rxf8+ {[%emt 0:00:09]} Kxf8 {[%emt 0:00:01]} 40. Qe4 {[%emt 0:00:20]} 1/2-1/2

[Event "49th Rilton Cup 2019-20"]
[Site "Stockholm"]
[Date "2019.12.28"]
[Round "2.14"]
[White "Ippolito, Dean"]
[Black "Ivanov, Sergey"]
[Result "1-0"]
[ECO "D45"]
[WhiteElo "2356"]
[BlackElo "2478"]
[Annotator "ChessBase"]
[PlyCount "81"]
[EventDate "2019.12.27"]
[EventType "swiss"]
[EventCountry "SWE"]
[SourceTitle "playchess.com"]
[Source "ChessBase"]
[SourceQuality "1"]
[TimeControl "40/5400+30:1800+30"]

1. d4 {[%emt 0:00:00]} d5 {[%emt 0:00:00]} 2. c4 {[%emt 0:00:00]} c6 {[%emt 0:00:00]} 3. Nf3 {[%emt 0:00:00]} Nf6 {[%emt 0:00:00]} 4. Nc3 {[%emt 0:00:29]} e6 {[%emt 0:00:12]} 5. e3 {[%emt 0:00:28]} Nbd7 {[%emt 0:00:15]} 6. Qc2 {[%emt 0:00:30]} Bd6 {[%emt 0:00:26]} 7. Bd3 {[%emt 0:00:37]} O-O {[%emt 0:00:29]} 8. O-O {[%emt 0:00:06]} dxc4 {[%emt 0:00:48]} 9. Bxc4 {[%emt 0:00:06]} e5 {[%emt 0:00:14]} 10. h3 {[%emt 0:07:47]} h6 {[%emt 0:01:08]} 11. Rd1 {[%emt 0:03:56]} Qc7 {[%emt 0:01:46]} 12. Bd2 {[%emt 0:07:41]} Re8 {[%emt 0:05:17]} 13. dxe5 {[%emt 0:09:53]} Nxe5 {[%emt 0:01:16]} 14. Nxe5 {[%emt 0:00:07]} Bxe5 {[%emt 0:04:48]} 15. Rac1 {[%emt 0:05:07]} Be6 {[%emt 0:03:10]} 16. Bxe6 {[%emt 0:08:22]} Rxe6 {[%emt 0:00:32]} 17. Ne2 {[%emt 0:00:41]} Ne4 {[%emt 0:09:08]} 18. Be1 {[%emt 0:01:04]} Rae8 {[%emt 0:02:07]} 19. Nd4 {[%emt 0:08:26]} Rf6 {[%emt 0:17:58]} 20. Kh1 {[%emt 0:21:47]} Bd6 {[%emt 0:12:13]} 21. Kg1 {[%emt 0:09:31]} Qe7 {[%emt 0:02:24]} 22. Nf3 {[%emt 0:05:52]} Rg6 {[%emt 0:07:54]} 23. Rd4 {[%emt 0:00:28]} c5 {[%emt 0:02:41]} 24. Rd3 {[%emt 0:02:45]} Ng5 {[%emt 0:04:40]} 25. Nxg5 {[%emt 0:00:32]} Qxg5 {[%emt 0:00:08]} 26. f4 {[%emt 0:00:19]} Qf5 {[%emt 0:01:42]} 27. Rb3 {[%emt 0:03:33]} Qd5 {[%emt 0:05:04]} 28. Qd2 {[%emt 0:02:15]} Qe4 {[%emt 0:01:57]} 29. Qc2 {[%emt 0:01:15]} Qc6 {[%emt 0:02:06]} 30. f5 {[%emt 0:00:05]} Rf6 {[%emt 0:03:26]} 31. Bh4 {[%emt 0:01:04]} g5 {[%emt 0:00:11]} 32. fxg6 {[%emt 0:00:26]} Rxg6 {[%emt 0:00:07]} 33. Rf1 {[%emt 0:00:38]} c4 {[%emt 0:07:20]} 34. Rc3 {[%emt 0:00:02]} Re4 {[%emt 0:01:03]} 35. Qf2 {[%emt 0:01:05]} Qd5 {[%emt 0:01:12]} 36. Bf6 {[%emt 0:00:19]} Bc5 {[%emt 0:01:08]} 37. Kh1 {[%emt 0:00:10]} Rxe3 {[%emt 0:01:33]} 38. Rxe3 {[%emt 0:00:58]} Bxe3 {[%emt 0:00:02]} 39. Qe2 {[%emt 0:00:31]} Qd3 {[%emt 0:01:20]} 40. Rd1 {[%emt 0:00:26]} Bd2 {[%emt 0:01:38]} 41. Qe8+ {[%emt 0:30:38]} 1-0

[Event "49th Rilton Cup 2019-20"]
[Site "Stockholm"]
[Date "2019.12.28"]
[Round "2.15"]
[White "Serarols Mabras, Bernat"]
[Black "Gagare, Shardul"]
[Result "1/2-1/2"]
[ECO "A41"]
[WhiteElo "2356"]
[BlackElo "2468"]
[Annotator "ChessBase"]
[PlyCount "63"]
[EventDate "2019.12.27"]
[EventType "swiss"]
[EventCountry "SWE"]
[SourceTitle "playchess.com"]
[Source "ChessBase"]
[SourceQuality "1"]
[TimeControl "40/5400+30:1800+30"]

1. d4 {[%emt 0:00:00]} d6 {[%emt 0:00:00]} 2. c4 {[%emt 0:00:00]} e5 {[%emt 0:00:25]} 3. Nc3 {[%emt 0:00:00]} exd4 {[%emt 0:00:05]} 4. Qxd4 {[%emt 0:00:00]} Nc6 {[%emt 0:00:06]} 5. Qd2 {[%emt 0:00:07]} Nf6 {[%emt 0:04:04]} 6. e4 {[%emt 0:02:44]} Be6 {[%emt 0:02:39]} 7. b3 {[%emt 0:01:45]} Be7 {[%emt 0:07:55]} 8. Bb2 {[%emt 0:05:08]} O-O {[%emt 0:01:24]} 9. g3 {[%emt 0:05:51]} a5 {[%emt 0:07:06]} 10. Bg2 {[%emt 0:07:55]} a4 {[%emt 0:03:12]} 11. Nge2 {[%emt 0:06:11]} axb3 {[%emt 0:30:31]} 12. axb3 {[%emt 0:00:27]} Rxa1+ {[%emt 0:00:44]} 13. Bxa1 {[%emt 0:00:08]} Qa8 {[%emt 0:04:24]} 14. O-O {[%emt 0:07:50]} Qa5 {[%emt 0:00:39]} 15. Nf4 {[%emt 0:12:22]} Ra8 {[%emt 0:08:53]} 16. Qb2 {[%emt 0:11:31]} Qa3 {[%emt 0:07:56]} 17. Nb5 {[%emt 0:02:02]} Qxb2 {[%emt 0:02:59]} 18. Bxb2 {[%emt 0:00:47]} Ra2 {[%emt 0:05:39]} 19. Bxf6 {[%emt 0:08:07]} Bxf6 {[%emt 0:00:07]} 20. Nxc7 {[%emt 0:00:44]} Nd4 {[%emt 0:00:32]} 21. Rb1 {[%emt 0:09:12]} Bg4 {[%emt 0:03:25]} 22. h3 {[%emt 0:02:53]} Ne2+ {[%emt 0:02:02]} 23. Nxe2 {[%emt 0:00:48]} Bxe2 {[%emt 0:00:05]} 24. Nb5 {[%emt 0:02:50]} Rd2 {[%emt 0:00:11]} 25. Bf1 {[%emt 0:01:25]} Bd1 {[%emt 0:02:51]} 26. b4 {[%emt 0:01:53]} Ba4 {[%emt 0:01:09]} 27. f4 {[%emt 0:01:23]} Bxb5 {[%emt 0:00:56]} 28. cxb5 {[%emt 0:00:06]} Bd4+ {[%emt 0:01:57]} 29. Kh1 {[%emt 0:00:06]} h5 {[%emt 0:00:42]} 30. h4 {[%emt 0:02:10]} g6 {[%emt 0:01:46]} 31. Rb3 {[%emt 0:01:03]} b6 {[%emt 0:00:32]} 32. Rd3 {[%emt 0:01:11]} 1/2-1/2

[Event "49th Rilton Cup 2019-20"]
[Site "Stockholm"]
[Date "2019.12.28"]
[Round "2.16"]
[White "Alexakis, Dimitrios"]
[Black "Vestby-Ellingsen, Mads"]
[Result "0-1"]
[ECO "C90"]
[WhiteElo "2093"]
[BlackElo "2346"]
[Annotator "ChessBase"]
[PlyCount "144"]
[EventDate "2019.12.27"]
[EventType "swiss"]
[EventCountry "SWE"]
[SourceTitle "playchess.com"]
[Source "ChessBase"]
[SourceQuality "1"]
[TimeControl "40/5400+30:1800+30"]

1. e4 {[%emt 0:06:28]} e5 {[%emt 0:01:52]} 2. Nf3 {[%emt 0:00:46]} Nc6 {[%emt 0:00:10]} 3. Bb5 {[%emt 0:01:52]} a6 {[%emt 0:00:18]} 4. Ba4 {[%emt 0:00:07]} Nf6 {[%emt 0:00:25]} 5. O-O {[%emt 0:00:14]} Be7 {[%emt 0:00:14]} 6. Re1 {[%emt 0:02:37]} b5 {[%emt 0:00:15]} 7. Bb3 {[%emt 0:00:02]} d6 {[%emt 0:00:40]} 8. c3 {[%emt 0:00:27]} O-O {[%emt 0:00:18]} 9. d3 {[%emt 0:05:50]} Na5 {[%emt 0:00:52]} 10. Bc2 {[%emt 0:00:02]} c5 {[%emt 0:00:20]} 11. Nbd2 {[%emt 0:00:05]} Nd7 {[%emt 0:00:28]} 12. Nf1 {[%emt 0:00:14]} Nb6 {[%emt 0:00:15]} 13. Ne3 {[%emt 0:15:09]} Nc6 {[%emt 0:00:27]} 14. a3 {[%emt 0:13:20]} Be6 {[%emt 0:08:39]} 15. b4 {[%emt 0:04:56]} a5 {[%emt 0:07:41]} 16. bxc5 {[%emt 0:06:41]} dxc5 {[%emt 0:00:13]} 17. Bb2 {[%emt 0:01:18]} Bf6 {[%emt 0:03:01]} 18. a4 {[%emt 0:04:34]} b4 {[%emt 0:03:29]} 19. c4 {[%emt 0:00:07]} Nd4 {[%emt 0:21:50]} 20. h3 {[%emt 0:12:10]} Rb8 {[%emt 0:04:03]} 21. Bxd4 {[%emt 0:04:10]} cxd4 {[%emt 0:00:35]} 22. Nf1 {[%emt 0:00:12]} Nd7 {[%emt 0:03:12]} 23. N1d2 {[%emt 0:02:00]} g6 {[%emt 0:04:19]} 24. Nb3 {[%emt 0:00:23]} Bg7 {[%emt 0:01:10]} 25. Qd2 {[%emt 0:01:21]} h6 {[%emt 0:07:11]} 26. Bd1 {[%emt 0:02:17]} Qb6 {[%emt 0:06:09]} 27. Qc2 {[%emt 0:02:35]} Rbc8 {[%emt 0:02:57]} 28. h4 {[%emt 0:02:00]} f5 {[%emt 0:07:02]} 29. h5 {[%emt 0:07:34]} fxe4 30. Rxe4 {[%emt 0:00:02]} Bd5 {[%emt 0:02:42]} 31. Nfd2 {[%emt 0:02:08]} Bxe4 {[%emt 0:05:35]} 32. Nxe4 {[%emt 0:00:01]} Nf6 {[%emt 0:01:50]} 33. Bf3 {[%emt 0:02:48]} Nd5 {[%emt 0:02:38]} 34. c5 {[%emt 0:00:55]} Qa6 {[%emt 0:00:37]} 35. Bg4 {[%emt 0:01:18]} Rc7 {[%emt 0:00:43]} 36. Re1 {[%emt 0:00:40]} Nf4 {[%emt 0:01:11]} 37. Qc4+ {[%emt 0:00:34]} Qxc4 {[%emt 0:00:08]} 38. dxc4 {[%emt 0:00:01]} gxh5 {[%emt 0:00:32]} 39. Bf3 {[%emt 0:00:30]} h4 {[%emt 0:02:51]} 40. Rd1 {[%emt 0:00:30]} Ne6 {[%emt 0:02:35]} 41. Bg4 {[%emt 0:30:27]} Nd8 {[%emt 0:08:06]} 42. Nd6 {[%emt 0:00:00]} Rf4 {[%emt 0:05:29]} 43. Bh3 {[%emt 0:00:00]} Rf8 {[%emt 0:08:04]} 44. f3 {[%emt 0:00:00]} Bf6 {[%emt 0:00:23]} 45. Kf2 {[%emt 0:00:00]} Bg5 {[%emt 0:01:14]} 46. Ke2 {[%emt 0:00:00]} Kg7 {[%emt 0:01:50]} 47. Kd3 {[%emt 0:00:00]} Kg6 {[%emt 0:02:32]} 48. Nb5 {[%emt 0:00:00]} Re7 {[%emt 0:01:50]} 49. Nxa5 {[%emt 0:00:00]} Ne6 {[%emt 0:00:20]} 50. Bxe6 {[%emt 0:00:22]} Rxe6 {[%emt 0:00:01]} 51. c6 {[%emt 0:00:42]} Kf5 {[%emt 0:03:53]} 52. c7 {[%emt 0:00:19]} Kf4 {[%emt 0:02:02]} 53. Nb7 {[%emt 0:04:30]} Rc6 {[%emt 0:00:47]} 54. N7d6 {[%emt 0:01:01]} Kg3 {[%emt 0:00:10]} 55. Ke4 {[%emt 0:00:33]} Kxg2 {[%emt 0:00:45]} 56. Kd5 {[%emt 0:00:29]} Rxc7 {[%emt 0:00:10]} 57. Nxc7 {[%emt 0:00:09]} h3 {[%emt 0:00:38]} 58. Ne6 {[%emt 0:00:43]} Ra8 {[%emt 0:00:45]} 59. Ne4 {[%emt 0:00:44]} Be3 {[%emt 0:00:12]} 60. Ng7 {[%emt 0:00:32]} h2 {[%emt 0:00:20]} 61. Nf5 {[%emt 0:00:29]} h1=Q {[%emt 0:00:19]} 62. Rxh1 {[%emt 0:00:26]} Kxh1 {[%emt 0:00:04]} 63. Nc5 {[%emt 0:00:32]} Bf4 {[%emt 0:00:34]} 64. Nd3 {[%emt 0:00:29]} Rxa4 {[%emt 0:00:33]} 65. c5 {[%emt 0:00:11]} b3 {[%emt 0:00:36]} 66. c6 {[%emt 0:00:13]} Kg2 {[%emt 0:00:42]} 67. c7 {[%emt 0:01:03]} Ra8 {[%emt 0:00:05]} 68. Ne7 {[%emt 0:00:32]} Kxf3 {[%emt 0:00:38]} 69. Kc6 {[%emt 0:00:30]} e4 {[%emt 0:00:32]} 70. Kb7 {[%emt 0:00:16]} exd3 {[%emt 0:00:18]} 71. Kxa8 {[%emt 0:00:08]} Bxc7 {[%emt 0:00:07]} 72. Nf5 {[%emt 0:00:08]} Ke4 {[%emt 0:00:18]} 0-1